bitfinex/quotes_SOLUSD_20250814
["timestamp","ask_amount","ask_price","bid_price","bid_amount"]
[1755174188655,9.74716922,204.32,204.27,36.68]
[1755174188819,9.74716922,204.31,204.27,37.4]
[1755174189019,9.74716922,204.33,204.28,0.72]
[1755174189322,9.74716922,204.3,204.29,26.0]
[1755174189531,0.66,204.36,204.29,26.0]
[1755174189724,9.74716922,204.33,204.29,26.0]
[1755174190034,9.74716922,204.31,204.27,0.72]
[1755174190245,0.66,204.33,204.28,36.7]
[1755174190554,9.74716922,204.32,204.29,36.7]
[1755174191058,0.66,204.33,204.29,36.7]
[1755174191059,9.74716922,204.33,204.29,36.7]
[1755174191220,9.74716922,204.32,204.29,36.7]
[1755174191424,9.74716922,204.33,204.29,36.7]
[1755174191674,0.66,204.33,204.29,36.7]
[1755174191825,9.74716922,204.33,204.29,36.7]
[1755174192144,0.06,204.39,204.29,36.7]
[1755174192318,0.06,204.39,204.32,26.0]
[1755174192519,9.74716922,204.38,204.33,36.72]
[1755174192758,0.06,204.39,204.36,26.0]
[1755174192977,0.06,204.39,204.37,36.72]
[1755174193349,9.80716922,204.39,204.37,36.72]
[1755174193548,0.06,204.39,204.37,36.72]
[1755174194269,0.06,204.39,204.38,0.72]
[1755174194450,0.06,204.39,204.37,26.0]
[1755174194639,0.06,204.39,204.38,36.7]
[1755174194839,9.80716922,204.39,204.38,36.7]
[1755174195044,10.46716922,204.39,204.38,36.7]
[1755174195579,10.46716922,204.39,204.28,0.15496859]
[1755174195745,9.74716922,204.3,204.29,36.7]
[1755174196056,0.66,204.38,204.29,37.42]
[1755174196262,15.10621557,204.37,204.32,26.0]
[1755174196573,9.74716922,204.38,204.33,63.44]
[1755174196872,0.06,204.39,204.36,26.0]
[1755174197083,9.80716922,204.39,204.37,36.74]
[1755174197242,9.74716922,204.38,204.37,36.74]
[1755174197751,24.85338479,204.38,204.33,26.0]
[1755174197951,9.74716922,204.34,204.33,36.74]
[1755174198147,9.74716922,204.34,204.32,26.0]
[1755174198353,9.74716922,204.34,204.32,62.74]
[1755174198674,9.74716922,204.35,204.33,0.72]
[1755174198847,9.74716922,204.34,204.32,36.74]
[1755174199186,9.74716922,204.34,204.29,0.72]
[1755174199187,9.74716922,204.33,204.31,36.72]
[1755174199471,9.74716922,204.32,204.31,36.72]
[1755174199889,0.66,204.38,204.31,36.72]
[1755174200046,9.74716922,204.34,204.31,36.72]
[1755174200248,9.74716922,204.32,204.31,36.72]
[1755174200459,9.74716922,204.35,204.31,37.44]
[1755174200660,15.10621557,204.38,204.31,37.44]
[1755174200914,9.74716922,204.35,204.31,37.44]
[1755174201201,9.74716922,204.36,204.31,37.44]
[1755174201500,0.06,204.39,204.34,26.0]
[1755174201660,0.06,204.39,204.38,26.0]
[1755174201859,0.06,204.39,204.25,15.23320231]
[1755174201860,9.80716922,204.39,204.37,36.84]
[1755174202087,9.74716922,204.38,204.36,36.88]
[1755174202272,0.06,204.39,204.36,36.88]
[1755174202461,0.06,204.39,204.38,26.0]
[1755174202662,0.06,204.39,204.38,26.72]
[1755174203208,0.06,204.39,204.38,27.20928466]
[1755174203382,0.06,204.39,204.38,26.72]
[1755174203764,0.06,204.39,204.38,42.31550023]
[1755174204468,0.06,204.39,204.38,47.20834688]
[1755174205293,0.06,204.39,204.38,47.27451394]
[1755174205496,0.06,204.39,204.38,42.31550023]
[1755174205793,0.06,204.39,204.38,47.20834688]
[1755174205997,0.06,204.43,204.41,26.0]
[1755174206211,0.06,204.43,204.38,6.10213131]
[1755174206212,0.06,204.43,204.42,64.10918892]
[1755174206376,0.06,204.43,204.42,79.21540449]
[1755174206569,0.06,204.43,204.42,64.10918892]
[1755174207096,0.06,204.43,204.42,26.72]
[1755174207293,0.06,204.43,204.42,37.6]
[1755174207592,0.06,204.43,204.36,0.72]
[1755174207896,0.06,204.43,204.37,36.88]
[1755174208064,0.06,204.39,204.37,36.88]
[1755174208265,0.06,204.39,204.37,37.6]
[1755174208466,0.06,204.39,204.38,0.72]
[1755174209704,0.06,204.39,204.37,36.88]
[1755174209872,0.06,204.39,204.38,0.72]
[1755174210604,0.06,204.39,204.38,20.71906222]
[1755174210890,0.06,204.42,204.4,26.0]
[1755174211097,0.06,204.42,204.41,38.04921285]
[1755174211397,0.06,204.42,204.41,53.15542842]
[1755174211769,0.06,204.45,204.44,41.10621557]
[1755174211970,0.06,204.45,204.44,78.64621557]
[1755174212282,0.77,204.57,204.44,78.64621557]
[1755174212283,0.1,204.57,204.48,26.0]
[1755174212472,0.1,204.57,204.52,26.0]
[1755174212679,0.1,204.57,204.53,36.86]
[1755174213171,0.1,204.57,204.56,26.0]
[1755174213496,0.77,204.57,204.56,62.86]
[1755174213883,0.1,204.57,204.56,62.86]
[1755174214994,0.1,204.57,204.56,83.53475682]
[1755174215199,0.1,204.57,204.56,78.64621557]
[1755174215707,0.1,204.57,204.56,79.13506969]
[1755174216294,0.77,204.57,204.52,26.0]
[1755174216616,0.77,204.57,204.56,26.0]
[1755174216780,0.77,204.57,204.56,62.94]
[1755174217285,0.1,204.57,204.56,62.94]
[1755174217475,0.1,204.57,204.56,63.62]
[1755174217783,0.1,204.57,204.56,62.94]
[1755174217991,0.1,204.57,204.56,63.62]
[1755174218191,0.1,204.57,204.56,26.68]
[1755174218395,0.1,204.57,204.56,62.96]
[1755174219105,0.1,204.57,204.56,37.64]
[1755174219477,0.1,204.57,204.56,0.68]
[1755174219673,0.1,204.57,204.56,1.16885412]
[1755174220089,0.1,204.57,204.56,38.14885412]
[1755174220989,0.1,204.57,204.56,43.03739537]
[1755174221736,5.57716922,204.71,204.6,26.0]
[1755174221916,15.10621557,204.79,204.64,26.0]
[1755174222215,29.41,204.85,204.61,38.16873466]
[1755174222216,19.98834478,204.83,204.68,26.0]
[1755174222508,19.51207914,204.87,204.72,26.0]
[1755174222673,9.74716922,204.78,204.72,26.0]
[1755174222875,9.74716922,204.79,204.7,26.0]
[1755174223095,9.74716922,204.78,204.74,26.0]
[1755174223320,9.74716922,204.78,204.75,36.96]
[1755174223604,0.67,204.77,204.75,36.96]
[1755174223805,10.41716922,204.76,204.66,26.0]
[1755174223998,9.74716922,204.75,204.7,26.0]
[1755174224197,0.67,204.74,204.7,26.0]
[1755174224413,10.41716922,204.74,204.71,36.94]
[1755174224637,0.67,204.78,204.71,36.94]
[1755174224929,9.74716922,204.77,204.71,36.94]
[1755174225141,0.67,204.78,204.71,36.94]
[1755174225429,9.74716922,204.75,204.71,36.94]
[1755174225726,9.74716922,204.74,204.72,36.92]
[1755174225894,0.67,204.78,204.72,36.92]
[1755174226104,9.74716922,204.77,204.72,36.92]
[1755174226414,9.74716922,204.78,204.72,36.92]
[1755174226801,9.74716922,204.77,204.72,36.92]
[1755174227000,0.67,204.81,204.73,0.68]
[1755174227312,0.67,204.81,204.72,36.92]
[1755174227313,9.74716922,204.77,204.72,36.92]
[1755174227728,0.67,204.76,204.73,36.9]
[1755174228027,0.67,204.79,204.73,36.9]
[1755174228209,9.74716922,204.78,204.73,36.9]
[1755174228412,15.10621557,204.82,204.66,0.48861526]
[1755174228413,9.74716922,204.77,204.68,26.0]
[1755174228619,0.67,204.77,204.68,0.68]
[1755174228814,0.67,204.77,204.72,26.0]
[1755174229002,0.67,204.76,204.72,26.0]
[1755174229201,10.41716922,204.76,204.73,36.86]
[1755174229534,0.67,204.8,204.73,36.86]
[1755174229704,10.41716922,204.8,204.73,36.86]
[1755174229905,9.74716922,204.78,204.73,36.86]
[1755174230100,0.67,204.78,204.73,36.86]
[1755174231216,10.41716922,204.78,204.73,36.86]
[1755174231543,9.74716922,204.74,204.67,0.68]
[1755174231835,9.74716922,204.74,204.63,0.68]
[1755174231836,9.74716922,204.71,204.63,0.68]
[1755174232022,10.41716922,204.74,204.68,26.0]
[1755174232212,0.67,204.74,204.69,36.84]
[1755174232413,15.10621557,204.77,204.63,0.48868689]
[1755174232414,24.85338479,204.72,204.63,0.48868689]
[1755174232616,0.67,204.71,204.62,0.68]
[1755174232916,0.67,204.71,204.66,26.0]
[1755174233235,0.67,204.75,204.67,0.68]
[1755174233419,0.67,204.75,204.68,36.86]
[1755174233621,15.10621557,204.75,204.68,36.86]
[1755174234150,0.67,204.74,204.68,36.86]
[1755174235009,0.67,204.74,204.61,2.77667158]
[1755174235010,9.74716922,204.71,204.61,2.77667158]
[1755174235324,10.41716922,204.75,204.65,26.0]
[1755174235525,10.41716922,204.75,204.65,26.68]
[1755174235728,0.67,204.75,204.65,26.68]
[1755174236413,0.67,204.78,204.66,1.16861526]
[1755174236726,0.67,204.78,204.7,26.0]
[1755174236915,15.10621557,204.75,204.7,26.0]
[1755174237117,9.74716922,204.76,204.67,0.68]
[1755174237118,0.06,204.8,204.74,26.0]
[1755174237422,0.06,204.8,204.75,0.68]
[1755174237626,0.06,204.8,204.76,36.98]
[1755174238146,0.06,204.8,204.76,37.66]
[1755174238310,0.06,204.8,204.77,0.68]
[1755174239030,0.06,204.8,204.79,26.0]
[1755174239341,0.06,204.8,204.79,26.68]
[1755174240415,0.06,204.8,204.79,63.62]
[1755174240640,0.06,204.8,204.79,26.0]
[1755174240826,0.06,204.8,204.79,63.63]
[1755174241233,0.06,204.8,204.79,63.65]
[1755174241437,0.06,204.8,204.79,62.98]
[1755174241644,0.06,204.8,204.79,26.67]
[1755174241916,0.06,204.8,204.79,42.51305093]
[1755174242365,0.06,204.8,204.79,37.63]
[1755174242659,0.06,204.8,204.79,37.67]
[1755174243450,0.06,204.8,204.79,38.15830509]
[1755174245862,0.06,204.8,204.79,64.13830509]
[1755174246340,0.06,204.8,204.79,38.13830509]
[1755174247437,0.06,204.8,204.79,36.92]
[1755174248038,0.06,204.8,204.76,0.48837663]
[1755174248344,0.06,204.8,204.77,37.59]
[1755174248520,0.06,204.8,204.76,0.48837663]
[1755174248727,0.06,204.8,204.77,0.67]
[1755174249030,0.06,204.8,204.78,36.9]
[1755174249257,0.06,204.8,204.79,36.9]
[1755174249624,0.75,204.8,204.72,0.67]
[1755174249957,10.49716922,204.8,204.73,36.92]
[1755174250117,0.06,204.8,204.74,0.67]
[1755174250448,0.06,204.8,204.75,36.94]
[1755174250945,0.27,204.79,204.75,36.94]
[1755174251272,0.27,204.78,204.71,0.20087252]
[1755174251436,9.74716922,204.75,204.71,0.20087252]
[1755174251626,9.74716922,204.78,204.72,36.98]
[1755174251827,0.27,204.75,204.72,36.98]
[1755174252440,15.16621557,204.8,204.71,0.20087252]
[1755174252441,0.27,204.74,204.71,0.20087252]
[1755174252755,0.27,204.73,204.72,36.98]
[1755174252923,15.10621557,204.76,204.72,36.98]
[1755174253135,0.27,204.79,204.72,36.98]
[1755174253337,0.06,204.8,204.75,26.0]
[1755174253553,0.06,204.8,204.76,38.11837663]
[1755174253761,0.06,204.8,204.77,0.67]
[1755174254259,0.06,204.8,204.78,0.67]
[1755174254749,0.06,204.8,204.76,36.96]
[1755174254965,0.06,204.8,204.77,37.0]
[1755174255330,0.27,204.79,204.73,26.0]
[1755174255575,0.27,204.79,204.74,37.0]
[1755174255772,0.69,204.78,204.71,0.03]
[1755174256076,15.10621557,204.75,204.72,37.0]
[1755174256249,0.69,204.74,204.72,37.0]
[1755174256436,0.75,204.8,204.72,37.0]
[1755174256832,0.75,204.8,204.75,26.0]
[1755174256833,0.06,204.8,204.75,26.0]
[1755174256987,0.06,204.8,204.76,37.65]
[1755174257150,0.06,204.8,204.76,62.98]
[1755174257349,0.06,204.8,204.77,0.67]
[1755174257551,0.06,204.8,204.74,0.67]
[1755174257769,0.06,204.8,204.75,63.0]
[1755174257968,0.06,204.8,204.76,37.0]
[1755174258171,0.75,204.8,204.76,37.0]
[1755174258397,0.69,204.79,204.75,37.0]
[1755174258677,0.69,204.78,204.75,37.0]
[1755174259052,0.69,204.77,204.75,37.0]
[1755174259494,0.69,204.76,204.75,37.0]
[1755174259946,15.79621557,204.76,204.75,37.0]
[1755174260148,25.54338479,204.76,204.75,37.0]
[1755174260469,15.10621557,204.75,204.71,37.12669406]
[1755174260697,15.79621557,204.75,204.71,37.12669406]
[1755174260900,15.10621557,204.76,204.71,36.99]
[1755174261107,15.10621557,204.76,204.71,0.03]
[1755174261410,0.06,204.8,204.71,0.03]
[1755174261411,24.85338479,204.72,204.71,0.03]
[1755174261586,25.54338479,204.72,204.71,0.03]
[1755174261782,17.14990922,204.8,204.71,0.03]
[1755174261783,15.10621557,204.75,204.71,0.03]
[1755174261977,0.69,204.74,204.71,0.03]
[1755174262175,15.10621557,204.75,204.72,9.70607681]
[1755174262396,0.69,204.76,204.73,36.98]
[1755174262712,24.81229238,204.74,204.73,36.98]
[1755174262908,15.10621557,204.73,204.71,0.03]
[1755174263072,15.79621557,204.72,204.71,0.03]
[1755174263580,15.10621557,204.73,204.71,0.03]
[1755174263789,0.69,204.73,204.71,0.03]
[1755174264356,15.10621557,204.79,204.71,0.03]
[1755174264473,0.69,204.76,204.71,9.73607681]
[1755174264979,24.81229238,204.78,204.72,9.70607681]
[1755174265185,10.39607681,204.79,204.73,36.98]
[1755174265495,15.10621557,204.78,204.74,9.70607681]
[1755174265995,0.06,204.8,204.76,9.70607681]
[1755174266201,0.06,204.8,204.78,9.70607681]
[1755174266381,0.06,204.8,204.71,30.91490459]
[1755174266382,0.06,204.8,204.79,73.33607681]
[1755174268772,0.06,204.8,204.74,0.48842434]
[1755174268978,0.06,204.8,204.79,9.70607681]
[1755174269296,0.06,204.8,204.79,46.66607681]
[1755174270171,0.06,204.8,204.79,47.33607681]
[1755174270904,0.06,204.8,204.78,26.0]
[1755174271073,0.06,204.8,204.79,36.94]
[1755174271279,0.06,204.8,204.79,46.64607681]
[1755174271498,0.06,204.8,204.79,72.64607681]
[1755174271676,0.06,204.8,204.79,73.35607681]
[1755174272584,0.06,204.8,204.78,9.70607681]
[1755174272812,0.06,204.8,204.79,36.92]
[1755174273578,0.76,204.8,204.79,36.92]
[1755174274613,15.86621557,204.8,204.78,36.86]
[1755174275119,25.51229238,204.79,204.78,36.86]
[1755174275421,25.51229238,204.79,204.72,0.15413081]
[1755174275642,4.94287152,204.8,204.72,0.15413081]
[1755174275643,15.10621557,204.76,204.72,0.15413081]
[1755174275794,15.10621557,204.76,204.73,36.84]
[1755174275989,15.80621557,204.76,204.73,36.84]
[1755174276314,15.10621557,204.79,204.74,9.70607681]
[1755174276698,0.06,204.8,204.75,0.71]
[1755174276913,0.06,204.8,204.76,9.70607681]
[1755174277117,0.06,204.8,204.77,36.9]
[1755174277426,0.06,204.8,204.78,9.70607681]
[1755174278220,0.06,204.8,204.77,36.9]
[1755174279231,0.06,204.8,204.71,0.03]
[1755174279232,24.81229238,204.78,204.71,9.73607681]
[1755174279397,9.70607681,204.77,204.72,36.88]
[1755174279601,15.10621557,204.78,204.73,9.70607681]
[1755174279996,0.06,204.8,204.76,9.70607681]
[1755174280224,0.06,204.8,204.77,36.84]
[1755174280431,0.76,204.8,204.77,36.84]
[1755174280633,24.81229238,204.78,204.77,36.84]
[1755174280845,25.51229238,204.78,204.77,36.84]
[1755174282122,15.80621557,204.78,204.77,36.84]
[1755174282325,15.10621557,204.77,204.74,36.82]
[1755174282531,24.81229238,204.77,204.74,36.82]
[1755174282842,10.40607681,204.76,204.74,36.82]
[1755174283039,9.70607681,204.77,204.74,36.82]
[1755174283211,9.70607681,204.77,204.74,36.8]
[1755174283616,9.70607681,204.76,204.74,36.8]
[1755174284015,15.10621557,204.76,204.74,36.8]
[1755174284528,15.10621557,204.77,204.74,36.8]
[1755174284732,9.70607681,204.78,204.74,36.8]
[1755174284733,0.06,204.8,204.75,0.71]
[1755174284938,0.06,204.8,204.76,9.70607681]
[1755174285119,0.06,204.8,204.75,10.41607681]
[1755174285314,24.87229238,204.8,204.74,46.50607681]
[1755174285533,10.46607681,204.8,204.74,46.50607681]
[1755174285849,9.76607681,204.8,204.74,46.50607681]
[1755174286137,15.16621557,204.8,204.75,9.70607681]
[1755174286522,0.06,204.8,204.76,10.41607681]
[1755174286726,0.06,204.8,204.79,9.70607681]
[1755174287047,0.06,204.8,204.79,36.74]
[1755174287353,0.06,204.8,204.79,46.44607681]
[1755174287544,0.06,204.8,204.79,47.15607681]
[1755174293763,0.06,204.83,204.82,26.0]
[1755174294061,0.06,204.83,204.82,47.07607681]
[1755174294922,0.06,204.83,204.82,73.07607681]
[1755174295953,0.06,204.83,204.82,72.36607681]
[1755174296347,0.06,204.83,204.82,72.30607681]
[1755174297139,0.06,204.83,204.82,35.70607681]
[1755174297452,0.06,204.83,204.82,72.28607681]
[1755174297749,0.06,204.83,204.82,46.99607681]
[1755174298728,0.06,204.83,204.82,50.91259898]
[1755174300051,0.06,204.83,204.82,41.20652217]
[1755174300223,0.06,204.83,204.82,37.29]
[1755174300631,0.06,204.83,204.82,46.95607681]
[1755174301255,0.06,204.83,204.82,10.41607681]
[1755174301451,0.06,204.83,204.82,72.20607681]
[1755174301651,0.06,204.83,204.82,35.70607681]
[1755174301854,0.06,204.83,204.82,36.5]
[1755174302434,0.71,204.83,204.8,35.70607681]
[1755174302736,0.71,204.83,204.81,36.5]
[1755174302931,0.06,204.83,204.81,36.5]
[1755174303345,0.06,204.83,204.81,46.20607681]
[1755174303658,0.06,204.83,204.82,10.87431038]
[1755174303839,0.06,204.83,204.82,10.38607681]
[1755174306067,0.06,204.85,204.84,26.0]
[1755174306230,0.06,204.85,204.84,72.88607681]
[1755174306434,0.06,204.85,204.84,63.18]
[1755174306665,0.06,204.85,204.84,72.88607681]
[1755174306865,0.06,204.85,204.84,35.70607681]
[1755174307064,0.06,204.85,204.84,72.20607681]
[1755174307473,14.93621557,204.91,204.84,72.20607681]
[1755174307680,14.93621557,204.91,204.86,9.70607681]
[1755174307844,9.70607681,204.91,204.85,9.70607681]
[1755174308205,9.70607681,204.87,204.85,36.48]
[1755174308340,9.70607681,204.86,204.74,35.78]
[1755174308671,9.70607681,204.82,204.76,35.70607681]
[1755174308968,9.70607681,204.82,204.76,9.70607681]
[1755174309437,9.91607681,204.84,204.8,26.0]
[1755174309767,9.91607681,204.84,204.81,36.48]
[1755174310268,9.91607681,204.84,204.78,9.70607681]
[1755174310437,0.21,204.84,204.79,36.48]
[1755174310639,9.91607681,204.84,204.79,36.48]
[1755174310863,0.21,204.84,204.79,36.48]
[1755174311171,9.91607681,204.84,204.8,36.46]
[1755174311548,9.91607681,204.84,204.81,26.0]
[1755174311745,9.91607681,204.84,204.82,36.46]
[1755174312056,0.21,204.89,204.83,9.70607681]
[1755174312249,0.21,204.92,204.88,9.70607681]
[1755174312450,0.21,204.91,204.89,36.44]
[1755174312651,0.21,204.9,204.89,36.44]
[1755174312845,9.91607681,204.9,204.78,0.68]
[1755174313058,24.81229238,204.95,204.88,9.70607681]
[1755174313381,0.21,204.92,204.88,36.44]
[1755174313665,9.70607681,204.89,204.83,9.70607681]
[1755174313879,24.81229238,204.87,204.84,36.46]
[1755174314175,0.21,204.86,204.82,9.70607681]
[1755174314336,9.70607681,204.85,204.79,9.70607681]
[1755174314542,15.31621557,204.86,204.81,9.70607681]
[1755174314771,0.21,204.85,204.82,9.70607681]
[1755174314975,15.10621557,204.87,204.82,9.70607681]
[1755174315261,15.10621557,204.85,204.82,9.70607681]
[1755174315467,15.10621557,204.85,204.81,9.70607681]
[1755174315769,15.10621557,204.85,204.82,36.46]
[1755174315950,15.10621557,204.85,204.82,9.70607681]
[1755174316131,15.10621557,204.85,204.83,36.46]
[1755174317554,15.10621557,204.85,204.83,36.44]
[1755174318566,15.10621557,204.85,204.83,46.14607681]
[1755174319037,15.31621557,204.92,204.84,9.70607681]
[1755174319240,15.31621557,204.92,204.87,9.70607681]
[1755174319436,0.21,204.91,204.86,46.12607681]
[1755174319653,0.21,204.91,204.88,9.70607681]
[1755174319854,25.02229238,204.94,204.88,9.70607681]
[1755174320173,15.10621557,204.93,204.89,9.70607681]
[1755174320373,0.21,204.94,204.86,36.42]
[1755174320374,9.91607681,204.92,204.86,36.42]
[1755174320541,9.91607681,204.92,204.86,46.12607681]
[1755174320766,9.91607681,204.92,204.84,0.68]
[1755174320767,15.10621557,204.91,204.88,9.70607681]
[1755174320968,0.21,204.94,204.88,9.70607681]
[1755174321303,9.91607681,204.94,204.89,36.4]
[1755174321463,15.10621557,204.93,204.88,9.70607681]
[1755174321800,15.10621557,204.94,204.89,46.10607681]
[1755174322295,15.31621557,204.94,204.89,46.10607681]
[1755174322496,0.06,204.96,204.92,9.70607681]
[1755174322673,0.06,204.96,204.93,36.38]
[1755174322864,0.06,204.96,204.95,9.70607681]
[1755174323297,0.06,204.96,204.94,9.70607681]
[1755174323519,0.06,204.96,204.95,9.70607681]
[1755174324295,0.06,204.96,204.95,46.08607681]
[1755174325595,0.06,204.96,204.95,36.36]
[1755174325801,0.06,204.96,204.91,0.68]
[1755174325976,0.06,204.96,204.92,36.34]
[1755174325977,0.21,204.95,204.92,36.34]
[1755174326393,15.10621557,204.92,204.87,10.38607681]
[1755174326597,9.91607681,204.94,204.88,46.04607681]
[1755174326792,24.81229238,204.95,204.89,46.02607681]
[1755174326977,25.02229238,204.95,204.9,36.32]
[1755174327300,0.21,204.94,204.9,36.32]
[1755174327805,9.70607681,204.95,204.89,46.02607681]
[1755174328013,0.06,204.96,204.91,9.70607681]
[1755174328175,0.06,204.96,204.93,9.70607681]
[1755174328393,0.06,204.96,204.93,46.02607681]
[1755174329412,0.06,204.96,204.93,36.32]
[1755174329716,15.16621557,204.96,204.93,36.32]
[1755174330299,9.76607681,204.96,204.93,36.32]
[1755174330537,0.06,204.96,204.93,36.32]
[1755174330692,9.76607681,204.96,204.9,9.70607681]
[1755174330898,9.97607681,204.96,204.92,36.32]
[1755174331797,9.76607681,204.96,204.92,36.32]
[1755174332490,0.06,204.96,204.92,36.32]
[1755174333015,0.27,204.96,204.92,36.32]
[1755174333396,9.97607681,204.96,204.92,36.32]
[1755174333894,0.06,204.96,204.92,36.32]
[1755174335428,0.06,204.96,204.93,0.69]
[1755174336014,0.06,204.96,204.95,9.70607681]
[1755174336220,0.06,204.96,204.95,10.39607681]
[1755174337522,0.06,204.96,204.95,9.70607681]
[1755174338228,0.06,204.96,204.92,0.69]
[1755174338401,0.06,204.96,204.82,0.48823357]
[1755174338402,0.06,204.96,204.94,9.70607681]
[1755174338610,0.06,204.96,204.94,10.39607681]
[1755174338797,0.06,204.96,204.94,0.69]
[1755174339112,0.06,204.96,204.94,10.39607681]
[1755174339323,0.06,204.96,204.93,36.32]
[1755174339494,0.06,204.96,204.94,10.39607681]
[1755174339895,0.06,204.96,204.95,9.70607681]
[1755174340514,0.06,204.96,204.93,0.69]
[1755174340713,0.06,204.96,204.95,10.39607681]
[1755174341092,0.06,204.96,204.95,9.70607681]
[1755174341390,0.06,204.96,204.94,36.32]
[1755174341599,0.06,204.96,204.95,0.69]
[1755174341801,0.06,204.96,204.94,46.02607681]
[1755174342014,15.16621557,204.96,204.94,46.02607681]
[1755174342216,15.16621557,204.96,204.94,46.71607681]
[1755174342434,15.16621557,204.96,204.95,36.32]
[1755174342602,0.06,204.96,204.95,46.71607681]
[1755174343320,0.06,204.98,204.97,26.0]
[1755174343633,0.06,204.98,204.97,36.39607681]
[1755174346544,0.06,204.98,204.97,72.69607681]
[1755174349635,0.06,204.98,204.97,36.39607681]
[1755174349850,0.06,204.98,204.97,9.70607681]
[1755174350145,0.06,204.98,204.97,46.69607681]
[1755174350312,0.06,204.98,204.97,9.70607681]
[1755174350516,0.06,204.98,204.97,46.00607681]
[1755174350721,0.06,204.98,204.97,9.70607681]
[1755174350922,0.06,204.98,204.97,46.69607681]
[1755174351116,0.06,204.98,204.97,9.70607681]
[1755174351324,0.06,204.98,204.97,46.69607681]
[1755174351745,0.28,205.0,204.99,35.70607681]
[1755174352054,0.67,205.11,204.99,73.18390548]
[1755174352244,0.67,205.11,205.08,9.70607681]
[1755174352543,0.67,205.11,205.09,36.3]
[1755174352745,4.87428505,205.16,205.1,9.70607681]
[1755174352746,0.67,205.16,205.1,9.70607681]
[1755174352961,0.67,205.16,205.09,36.99]
[1755174353239,24.81229238,205.15,205.1,36.3]
[1755174353419,15.10621557,205.13,205.11,36.3]
[1755174353629,15.77621557,205.12,205.11,36.3]
[1755174354010,15.10621557,205.12,205.11,46.00607681]
[1755174354415,15.10621557,205.12,205.11,36.3]
[1755174354611,15.77621557,205.12,205.11,36.3]
[1755174355033,15.10621557,205.12,205.11,36.3]
[1755174355416,15.10621557,205.12,205.11,46.00607681]
[1755174355643,15.10621557,205.14,205.11,46.00607681]
[1755174355851,4.87379582,205.18,205.11,46.00607681]
[1755174355852,15.10621557,205.18,205.13,9.70607681]
[1755174356019,15.77621557,205.17,205.16,9.70607681]
[1755174356341,15.77621557,205.17,205.14,36.28]
[1755174356342,15.10621557,205.16,205.14,36.28]
[1755174356527,15.10621557,205.14,205.11,9.70607681]
[1755174356728,15.10621557,205.12,205.11,36.28]
[1755174357070,15.10621557,205.12,205.11,45.98607681]
[1755174357228,15.10621557,205.13,205.11,45.98607681]
[1755174357433,15.10621557,205.13,205.12,9.70607681]
[1755174357834,15.10621557,205.13,205.12,45.98607681]
[1755174358242,15.10621557,205.16,205.12,45.98607681]
[1755174358460,15.10621557,205.16,205.15,9.70607681]
[1755174358652,15.10621557,205.16,205.15,45.98607681]
[1755174359955,15.10621557,205.16,205.15,36.28]
[1755174360158,15.10621557,205.19,205.15,46.67607681]
[1755174360351,26.0,205.25,205.18,9.70607681]